[Event "58th Akiba Rubinstein GM 2022"]
[Site "Polanica-Zdroj"]
[Date "2022.08.16"]
[Round "4.5"]
[White "Teclaf, Pawel"]
[Black "Kempinski, Robert"]
[Result "1/2-1/2"]
[ECO "B46"]
[WhiteElo "2550"]
[BlackElo "2558"]
[Annotator "TA"]
[PlyCount "155"]
[EventDate "2022.08.13"]
[EventCountry "POL"]
[SourceTitle "playchess.com"]
[Source "ChessBase"]
[SourceQuality "1"]
[TimeControl "40/5400+30:1800+30"]

{[%evp 11,155,30,38,28,58,50,50,43,48,36,54,62,60,60,58,58,76,67,106,60,55,45,82,87,168,168,154,167,155,183,155,105,115,41,64,43,119,132,135,134,161,162,169,162,169,158,153,95,101,100,108,107,100,110,89,88,98,95,95,94,103,94,104,103,104,103,107,102,146,0,0,0,0,0,0,0,0,0,0,0,0,0,0,0,0,0,0,0,0,0,0,0,0,0,0,0,0,0,0,0,0,0,0,0,0,0,0,0,0,0,0,0,0,0,0,0,0,0,0,0,0,0,0,0,0,0,0,0,0,0,0,0,0,0,0,0,0,0,0,0,0,0,0,0,0,0]} 1. e4 {[%emt 0:00:03]} c5 {[%emt 0:00:13]} 2. Nf3 {[%emt 0:00:04]} e6 {[%emt 0:00:40]} 3. d4 {[%emt 0:00:04]} cxd4 {[%emt 0:00:12]} 4. Nxd4 {[%emt 0:00:06]} Nc6 {[%emt 0:00:14]} 5. Nc3 {[%emt 0:00:05]} a6 {[%emt 0:00:19]} 6. Be2 {[%emt 0:00:15]} d6 {[%emt 0:02:01]} 7. Be3 {[%emt 0:00:24] B54: Sicilian: 2...d6 3 d4 cxd4 4 Nxd4, Unusual Lines .} Bd7 {[%emt 0:03:49]} 8. Qd2 {[%emt 0:06:35]} b5 {[%emt 0:03:45] [#]} 9. a3 $146 {[%emt 0:02:33][%cal Ba2a3,Ba3a4][%mdl 32] White is slightly better.} ({Predecessor:} 9. f4 Rc8 10. Nxc6 Bxc6 11. Bf3 Nf6 12. a3 Be7 13. O-O O-O 14. Rad1 Qc7 15. Qf2 Qb7 16. e5 dxe5 17. fxe5 Nd7 18. Qg3 Bxf3 19. Rxf3 Bc5 20. Bxc5 Rxc5 21. Re1 Qc7 22. Rfe3 Rc8 23. h3 {0-1 (50) Paehtz,E (2459)-Bischoff,K (2564) Playchess.com INT 2003}) 9... Nge7 {[%emt 0:05:22]} 10. Nb3 {[%emt 0:02:37]} Nc8 {[%emt 0:01:50]} 11. a4 {[%emt 0:14:25]} b4 {[%emt 0:02:20]} 12. Na2 {[%emt 0:00:26]} a5 $1 {[%emt 0:01:44]} 13. c3 $36 {[%emt 0:01:31][%mdl 2048] White is pushing.} Rb8 {[%emt 0:08:14]} 14. Bb5 {[%emt 0:02:48]} Ne5 {[%emt 0:10:01]} 15. Bxd7+ {[%emt 0:12:38]} (15. O-O $16) 15... Qxd7 $14 {[%emt 0:01:10]} 16. Nxa5 {[%emt 0:02:48]} Qxa4 {[%emt 0:30:59]} 17. cxb4 {[%emt 0:00:45]} Qb5 {[%emt 0:01:04]} (17... Be7 $16 {was called for.}) 18. Nc3 $18 {[%emt 0:08:59]} Qxb4 {[%emt 0:02:45]} 19. b3 {[%emt 0:00:29]} Ra8 {[%emt 0:03:23]} 20. Ra4 {[%emt 0:00:12]} Qb8 {[%emt 0:00:22]} 21. O-O {[%emt 0:04:17]} ({White should play} 21. f4 Ng4 22. Bd4) 21... Be7 $16 {[%emt 0:02:35]} 22. Qe2 {[%emt 0:12:38]} (22. f4 $16 Ng4 23. Bd4 (23. Nc6 Qb7 $16)) 22... O-O {[%emt 0:02:32]} 23. f4 {[%emt 0:00:38]} Nd7 {[%emt 0:02:31]} (23... Bd8 $14) 24. Nc6 {[%emt 0:04:33]} Qc7 {[%emt 0:01:31] [#]} 25. Qb5 {[%emt 0:04:17]} (25. Rxa8 $6 Qxc6 26. Rfa1 Bf6 $14) 25... Rxa4 {[%emt 0:00:40]} 26. bxa4 {[%emt 0:01:17]} (26. Qxa4 $6 Bf6 $11) 26... Bf6 {[%emt 0:01:21]} 27. Rc1 {[%emt 0:01:40][%cal Oc3d5]} Bxc3 {[%emt 0:00:19]} 28. Rxc3 {[%emt 0:00:08][%cal Oc6e7] aiming for Ne7+!} Nf6 {[%emt 0:00:07]} 29. a5 {[%emt 0:03:21] 0x0.0024d6363f0bdp-1022s more active pieces.} ({White should try} 29. Rb3) 29... Nxe4 {[%emt 0:01:48]} 30. Rc1 {[%emt 0:00:03]} Nc5 {[%emt 0:02:38]} 31. Bxc5 {[%emt 0:02:44]} dxc5 {[%emt 0:00:06]} 32. Qxc5 {[%emt 0:00:42]} Qxf4 {[%emt 0:01:21]} 33. a6 {[%emt 0:01:47]} h6 {[%emt 0:02:15]} 34. Ra1 {[%emt 0:04:49]} Re8 {[%emt 0:01:35]} 35. a7 {[%emt 0:03:04]} Nxa7 {[%emt 0:00:06]} 36. Rxa7 {[%emt 0:02:05]} Kh8 {[%emt 0:00:35]} 37. Ne5 {[%emt 0:01:22]} Rb8 {[%emt 0:01:33] [#] ( -> ...Rb1+)} 38. Ra1 {[%emt 0:00:26] Inhibits Rb1+.} (38. Nxf7+ $6 Kh7 39. Qc2+ Kg8 40. Nxh6+ Qxh6 $11) 38... Kg8 {[%emt 0:04:04]} 39. Rf1 {[%emt 0:00:49]} Qg5 {[%emt 0:00:06]} 40. Rxf7 {[%emt 0:00:00]} (40. Qc3 $16) 40... Rb1+ $11 {[%emt 0:00:00] The position is equal.} 41. Rf1 {[%emt 0:04:44]} Rxf1+ {[%emt 0:00:46]} 42. Kxf1 {[%emt 0:00:08]} Qf5+ {[%emt 0:00:09]} 43. Ke1 {[%emt 0:01:58]} Qe4+ {[%emt 0:01:32]} 44. Kd1 {[%emt 0:02:24] Hoping for Qc8+.} Qxg2 {[%emt 0:04:31]} 45. Qc8+ {[%emt 0:00:58]} Kh7 {[%emt 0:00:07]} 46. Qc2+ {[%emt 0:00:03]} Qxc2+ {[%emt 0:00:05]} 47. Kxc2 {[%emt 0:00:03][%mdl 4096] Endgame KN-K3P} h5 $1 {[%emt 0:02:02]} 48. Kd3 {[%emt 0:06:39]} Kh6 {[%emt 0:00:07]} 49. Nf3 {[%emt 0:01:42]} g5 $1 {[%emt 0:01:33][%cal Bg7g5,Bg5g4][%mdl 32]} 50. Nd4 {[%emt 0:04:11]} g4 $1 {[%emt 0:00:46]} 51. Ke4 {[%emt 0:08:40]} Kg5 {[%emt 0:01:10]} 52. Ne2 {[%emt 0:00:07]} Kh4 {[%emt 0:07:18]} 53. Ng1 {[%emt 0:00:10] Kf4 is the strong threat.} e5 {[%emt 0:00:20]} 54. Ke3 {[%emt 0:04:03]} Kg5 {[%emt 0:00:45]} 55. Kf2 {[%emt 0:02:07]} Kh4 {[%emt 0:02:04]} 56. Ke2 {[%emt 0:00:44]} Kg5 {[%emt 0:01:55]} 57. Ke3 {[%emt 0:00:10]} Kf5 {[%emt 0:03:09]} 58. Ne2 {[%emt 0:00:03]} h4 {[%emt 0:00:25]} 59. Kd3 {[%emt 0:00:31]} Ke6 {[%emt 0:02:02]} (59... g3 $2 60. h3 $18) 60. Ke4 {[%emt 0:00:41]} Kf6 $1 {[%emt 0:00:07]} 61. Nc3 {[%emt 0:00:47] Black must now prevent Nd5+.} Ke6 {[%emt 0:00:08]} 62. Ke3 {[%emt 0:00:42]} Kf5 {[%emt 0:00:18]} (62... g3 $2 63. h3 $18 (63. hxg3 hxg3 64. Kf3 Kf7 $11)) 63. Ne2 {[%emt 0:00:52]} Ke6 {[%emt 0:00:36]} (63... g3 64. h3 Ke6 65. Ng1 $18) 64. Nc1 {[%emt 0:00:34]} Kf5 {[%emt 0:01:26]} (64... g3 65. h3 (65. hxg3 hxg3 66. Kf3 Kf7 $11) 65... Kf5 66. Ne2 $18) 65. Ne2 {[%emt 0:00:55]} Ke6 {[%emt 0:00:38]} (65... g3 66. h3 Ke6 67. Ng1 $18) 66. Nc3 {[%emt 0:00:33]} Kf5 {[%emt 0:00:41]} (66... g3 $2 67. h3 $18 (67. hxg3 hxg3 68. Kf3 Kf7 $11)) 67. Nd1 {[%emt 0:00:31]} Ke6 {[%emt 0:00:39]} (67... g3 $2 68. h3 $18 (68. hxg3 hxg3 69. Kf3 Kg6 $11)) 68. Nb2 {[%emt 0:00:31]} Kf5 {[%emt 0:01:07]} (68... g3 69. h3 (69. hxg3 hxg3 70. Kf3 Kf7 $11) 69... Kd5 70. Nd1 $18 (70. Kf3 Kd4 $11)) 69. Nd3 {[%emt 0:00:07]} Ke6 {[%emt 0:00:54]} (69... g3 70. h3 $18) 70. Nc1 {[%emt 0:00:48]} Kf5 {[%emt 0:00:08]} (70... g3 $2 71. h3 $18 (71. hxg3 hxg3 72. Kf3 Kf7 $11)) 71. Na2 {[%emt 0:00:35]} Ke6 {[%emt 0:00:29]} (71... g3 72. h3 (72. hxg3 h3 $11) 72... g2 73. Kf2 $18) 72. Nb4 {[%emt 0:00:15]} Kf5 {[%emt 0:00:30]} (72... g3 73. h3 (73. hxg3 hxg3 74. Kf3 Kf7 $11) 73... Kf5 74. Nc2 $18) 73. Nc2 {[%emt 0:00:31]} Ke6 {[%emt 0:00:22]} (73... g3 74. h3 (74. hxg3 hxg3 75. Kf3 Kg6 $11) 74... g2 75. Kf2 $18) 74. Ke2 {[%emt 0:00:43] And now Ne3 would win.} Kf5 {[%emt 0:00:17]} (74... g3 75. h3 $18 (75. hxg3 hxg3 76. Kf3 Kf7 $11)) 75. Ne3+ {[%emt 0:00:24]} Kf4 {[%emt 0:01:48]} 76. Ng2+ {[%emt 0:00:35]} Kg5 {[%emt 0:00:05]} 77. Ne1 {[%emt 0:00:08]} Kf4 {[%emt 0:00:14]} 78. Nd3+ {[%emt 0:00:38] Blacks defense is rewarded with a draw.  Weighted Error Value: White=0.09 (flawless) /Black=0.08 (flawless)} 1/2-1/2

[Event "58th Akiba Rubinstein GM 2022"]
[Site "Polanica-Zdroj"]
[Date "2022.08.17"]
[Round "5.1"]
[White "Tomczak, Jacek"]
[Black "Bernadskiy, Vitaliy"]
[Result "1-0"]
[ECO "C88"]
[WhiteElo "2596"]
[BlackElo "2598"]
[Annotator "TA"]
[PlyCount "112"]
[EventDate "2022.08.13"]
[EventCountry "POL"]
[SourceTitle "playchess.com"]
[Source "ChessBase"]
[SourceQuality "1"]
[TimeControl "40/5400+30:1800+30"]

{[%evp 17,112,25,33,34,15,32,41,0,0,-15,-16,-15,-15,-14,-11,-5,-5,-6,-8,-14,6,6,16,-8,-20,-8,-16,-12,0,-1,0,-56,-41,-63,-63,-63,-63,-63,-63,-82,-82,-82,-82,-82,-82,-82,-82,-82,-82,-82,-82,-82,-82,-82,-82,-82,-82,-129,-130,-130,-130,-196,-196,-196,-196,-196,-196,-196,-196,-196,-196,-196,-196,-196,-196,-196,-196,-196,-196,-196,-196,-196,-196,-196,-196,-196,-196,-196,-196,-196,-196,-196,-196,-196,-196,-196,0]} 1. e4 {[%emt 0:00:04]} e5 {[%emt 0:00:03]} 2. Nf3 {[%emt 0:00:11]} Nc6 {[%emt 0:00:04]} 3. Bb5 {[%emt 0:00:08]} a6 {[%emt 0:00:18]} 4. Ba4 {[%emt 0:00:16]} Nf6 {[%emt 0:01:11]} 5. O-O {[%emt 0:00:20]} b5 {[%emt 0:01:10]} 6. Bb3 {[%emt 0:00:06]} Bb7 {[%emt 0:00:32]} 7. Re1 {[%emt 0:03:07]} Be7 {[%emt 0:02:17]} 8. c3 {[%emt 0:01:12]} O-O {[%emt 0:01:37]} 9. d4 {[%emt 0:00:46]} d6 {[%emt 0:00:04]} 10. a3 {[%emt 0:08:10] C91: Closed Ruy Lopez: 7...d6 8 c3 0-0 9 d4.} Na5 {[%emt 0:04:50]} 11. Bc2 {[%emt 0:00:59]} c5 {[%emt 0:00:40] [#]} 12. d5 $146 {[%emt 0:02:30] White is slightly better.} ({Predecessor:} 12. b4 Nc4 13. bxc5 dxc5 14. Nxe5 Nxe5 15. dxe5 Nxe4 16. Qe2 Ng5 17. f4 Ne6 18. f5 {0-1 (55) Lagno,K (2542)-Kovanova,B (2371) Belgrade 2013}) 12... c4 {[%emt 0:02:06]} 13. Nbd2 {[%emt 0:03:49]} Nd7 {[%emt 0:00:40]} 14. Nf1 {[%emt 0:03:24]} Nc5 {[%emt 0:03:28]} 15. Be3 {[%emt 0:01:26] Hoping for Bxc5.} Nab3 {[%emt 0:01:13]} 16. Rb1 {[%emt 0:00:14]} a5 {[%emt 0:06:08]} 17. Ng3 {[%emt 0:04:03]} Bc8 {[%emt 0:00:06]} 18. Nf5 {[%emt 0:17:02]} Bxf5 {[%emt 0:07:36]} 19. exf5 {[%emt 0:00:08]} a4 {[%emt 0:07:35]} 20. Bxb3 {[%emt 0:05:18]} Nxb3 {[%emt 0:01:17]} 21. Qc2 {[%emt 0:00:12]} g6 {[%emt 0:07:01]} 22. g4 {[%emt 0:07:13]} Kg7 {[%emt 0:02:51]} 23. Kh1 {[%emt 0:07:20]} h6 {[%emt 0:01:05] Prevents g5.} 24. Kg2 {[%emt 0:11:53]} ({White should try} 24. Nd2 $11) 24... Bg5 {[%emt 0:02:09]} 25. Nxg5 {[%emt 0:13:31]} hxg5 {[%emt 0:00:04]} 26. fxg6 {[%emt 0:00:02]} fxg6 {[%emt 0:00:49]} 27. f3 {[%emt 0:00:39]} Qf6 {[%emt 0:10:04]} 28. Qe4 {[%emt 0:01:00]} Rac8 {[%emt 0:00:23]} 29. Rbd1 {[%emt 0:00:39]} Nc5 {[%emt 0:00:26]} 30. Bxc5 {[%emt 0:00:04]} Rxc5 {[%emt 0:00:02]} 31. Rd2 {[%emt 0:01:07]} Qe7 {[%emt 0:01:40]} 32. Qc2 {[%emt 0:00:57]} Qb7 {[%emt 0:00:46]} 33. Qd1 {[%emt 0:00:33]} Rc7 {[%emt 0:02:07]} 34. Rf2 {[%emt 0:01:59]} Rcf7 {[%emt 0:00:41]} 35. h3 {[%emt 0:01:14]} Rf4 {[%emt 0:00:26]} 36. Re4 {[%emt 0:01:24]} Qf7 {[%emt 0:01:09] [#] White must now prevent ...Rxe4.} (36... Qa7 {looks sharper.} 37. Qe1 Rh8 38. Qd2 Rff8) 37. Rxf4 {[%emt 0:02:01]} (37. Rf1 $142) 37... gxf4 $17 {[%emt 0:02:14][%mdl 4096] Endgame KQR-KQR} ({Much worse is} 37... exf4 $6 38. Qd4+ Kg8 39. Re2 $11) ({Not} 37... Qxf4 38. Rf1 $15) 38. Rf1 {[%emt 0:01:34]} Qe7 {[%emt 0:02:21]} 39. Qc2 {[%emt 0:02:31]} (39. Qe1 $17) 39... Qh4 $19 {[%emt 0:00:30] Black is clearly better.} 40. Qf2 {[%emt 0:00:00] Prevents Qg3+.} Qxf2+ {[%emt 0:00:00]} 41. Rxf2 {[%emt 0:01:43] KR-KR} Rh8 {[%emt 0:03:58]} 42. Rf1 {[%emt 0:02:23]} Kf6 {[%emt 0:00:28]} 43. Re1 {[%emt 0:00:31]} g5 {[%emt 0:00:58]} 44. Re2 {[%emt 0:01:12]} Ke7 {[%emt 0:00:46]} 45. Re1 {[%emt 0:00:23]} Kd7 {[%emt 0:00:05]} 46. Re2 {[%emt 0:02:16]} Kc7 {[%emt 0:00:03]} 47. Rd2 {[%emt 0:00:37]} Kb6 {[%emt 0:00:04]} 48. Rd1 {[%emt 0:00:07]} Kc5 {[%emt 0:01:04]} 49. Rd2 {[%emt 0:02:22]} Rh7 {[%emt 0:00:03]} 50. Kh2 {[%emt 0:02:08]} Kb6 {[%emt 0:01:30]} 51. Kg2 {[%emt 0:00:45]} Kc7 {[%emt 0:00:27]} 52. Rd1 {[%emt 0:00:18]} Kd8 {[%emt 0:00:04]} 53. Re1 {[%emt 0:00:16]} Ke7 {[%emt 0:00:04]} 54. Re2 {[%emt 0:00:14]} Kf6 {[%emt 0:00:04]} 55. Re1 {[%emt 0:00:17]} Rc7 {[%emt 0:00:22]} 56. Rd1 {[%emt 0:00:44]} Rh7 $2 {[%emt 0:06:28][%mdl 32768] Weighted Error Value: White=0.07 (flawless) /Black=0.01 (flawless) . Loss on time!?} ({Black should play} 56... Rc5 $19 57. Kf2 Rc7) 1-0

[Event "58th Akiba Rubinstein GM 2022"]
[Site "Polanica-Zdroj"]
[Date "2022.08.17"]
[Round "5.2"]
[White "Kempinski, Robert"]
[Black "Plat, Vojtech"]
[Result "0-1"]
[ECO "A48"]
[WhiteElo "2558"]
[BlackElo "2556"]
[Annotator "TA"]
[PlyCount "118"]
[EventDate "2022.08.13"]
[EventCountry "POL"]
[SourceTitle "playchess.com"]
[Source "ChessBase"]
[SourceQuality "1"]
[TimeControl "40/5400+30:1800+30"]

{[%evp 9,118,20,19,12,11,10,20,21,18,12,18,9,22,14,47,17,18,17,16,21,21,19,9,0,7,0,0,0,13,0,0,-7,-7,-13,-18,-26,-14,-18,0,0,0,-28,-27,-35,-33,-31,-28,-26,-25,-34,-33,-41,-38,-33,-35,-52,-26,-42,-24,-40,-20,-46,-47,-43,-19,-19,-19,-50,-34,-58,-42,-57,-50,-54,-35,-42,-42,-53,-57,-72,-72,-93,-42,-104,-96,-181,-167,-247,-241,-245,-235,-151,-206,-214,-208,-169,-197,-207,-202,-437,-429,-422,-397,-1071,-1006,-12846,-12847,-12847,-12847,-12849,-12849]} 1. d4 {[%emt 0:00:04]} Nf6 {[%emt 0:00:06]} 2. Nf3 {[%emt 0:00:35]} g6 {[%emt 0:00:04]} 3. c4 {[%emt 0:00:56]} Bg7 {[%emt 0:00:07]} 4. e3 {[%emt 0:00:21]} O-O {[%emt 0:00:12]} 5. Be2 {[%emt 0:00:20]} c5 {[%emt 0:00:48]} 6. d5 {[%emt 0:00:20] E60: King's Indian: Unusual lines and Fianchetto Variation without Nc3.} e6 {[%emt 0:00:31][%cal Ob7b5]} 7. Nc3 {[%emt 0:00:16]} exd5 {[%emt 0:00:11]} 8. cxd5 {[%emt 0:00:10] The position is equal.} d6 {[%emt 0:00:07]} 9. Nd2 {[%emt 0:01:53]} Re8 {[%emt 0:01:49] has lost popularity (9...Na6).} 10. O-O {[%emt 0:01:46]} Na6 {[%emt 0:01:45]} 11. e4 {[%emt 0:00:44]} Bd7 $5 {[%emt 0:01:06][%mdl 4] Exploring less charted territory.} 12. Re1 {[%emt 0:02:38]} Nc7 {[%emt 0:06:02]} 13. a4 {[%emt 0:01:21] Prevents b5.} a6 {[%emt 0:00:28]} 14. Bf3 {[%emt 0:11:06] Black must now prevent Nc4.} Bf8 $1 {[%emt 0:09:43] [#]} 15. Nb3 $146 {[%emt 0:19:12]} ({Predecessor:} 15. a5 Nb5 16. Nc4 Nd4 17. Be3 Nxf3+ 18. Qxf3 Rc8 19. Bg5 Kg7 20. e5 dxe5 21. Ne4 Be7 22. d6 Rc6 23. dxe7 Qxe7 24. Rad1 {1-0 (24) Larsen,K (2235)-Jensen,T (2006) Hillerod 2020}) 15... b5 {[%emt 0:18:10]} 16. Bf4 {[%emt 0:08:56]} bxa4 {[%emt 0:07:47]} 17. Nxa4 {[%emt 0:05:47]} Rb8 {[%emt 0:01:20][%cal Of6d5]} 18. Bd2 {[%emt 0:04:41]} Ng4 {[%emt 0:14:23]} 19. Bxg4 {[%emt 0:12:02]} Bxg4 {[%emt 0:00:06]} 20. Qxg4 {[%emt 0:00:38]} Rxb3 {[%emt 0:00:03]} 21. Qd1 {[%emt 0:05:25]} Rb7 {[%emt 0:02:50]} 22. Ba5 {[%emt 0:03:49]} Qd7 {[%emt 0:05:36]} 23. Rc1 {[%emt 0:03:41]} Reb8 {[%emt 0:07:09]} (23... Bh6 {seems wilder.} 24. Rxc5 dxc5 25. Nxc5 Qb5) 24. e5 {[%emt 0:01:14]} Nxd5 {[%emt 0:02:08] Strongly threatening ...Nf4.} 25. Qxd5 {[%emt 0:05:25][%cal Oe5d6]} Qxa4 {[%emt 0:00:03]} 26. Bc3 {[%emt 0:00:10]} Qb3 {[%emt 0:00:38]} 27. Qxb3 {[%emt 0:01:54]} Rxb3 {[%emt 0:00:04]} 28. exd6 {[%emt 0:00:18]} Bxd6 {[%emt 0:00:02]} 29. Ra1 {[%emt 0:00:14]} R3b6 {[%emt 0:01:35]} 30. g3 {[%emt 0:00:20]} Bf8 {[%emt 0:00:07]} 31. Ra5 {[%emt 0:00:21]} Rc6 {[%emt 0:00:39]} 32. Re5 {[%emt 0:03:18]} Rd8 {[%emt 0:05:33]} 33. Kf1 {[%emt 0:00:21]} Rb6 {[%emt 0:02:01]} 34. Re4 {[%emt 0:00:33]} h5 {[%emt 0:01:39]} 35. Ke2 f5 {[%emt 0:01:23]} 36. Rea4 {[%emt 0:01:32]} Re8+ {[%emt 0:02:03]} 37. Kf3 {[%emt 0:01:01]} Ree6 {[%emt 0:00:08]} 38. h4 {[%emt 0:00:09]} Kf7 {[%emt 0:00:18]} 39. Ra1 {[%emt 0:00:19]} Rbc6 {[%emt 0:02:54]} 40. Rd1 {[%emt 0:00:00]} Bd6 {[%emt 0:00:00]} 41. Ra4 {[%emt 0:02:36]} Ke7 {[%emt 0:04:47]} 42. Rda1 {[%emt 0:03:15]} Bc7 {[%emt 0:00:34]} 43. Rc4 {[%emt 0:00:59]} Kd7 {[%emt 0:01:28]} 44. Rd1+ {[%emt 0:00:31]} Rcd6 {[%emt 0:00:22]} 45. Ra1 {[%emt 0:00:29]} Rd3+ {[%emt 0:01:13]} 46. Kg2 {[%emt 0:00:08]} Re2 {[%emt 0:01:16] Hoping for ...Bxg3.} 47. Kf1 {[%emt 0:03:34]} (47. Kg1 $17) 47... Rc2 $19 {[%emt 0:00:06][%cal Oa6a5]} 48. Ke1 {[%emt 0:07:01]} (48. Kg1 $142) 48... f4 {[%emt 0:07:44]} 49. gxf4 {[%emt 0:02:39]} Rh3 {[%emt 0:00:04][%cal Rh3h1] [#]} 50. Rd1+ {[%emt 0:00:23]} Kc6 {[%emt 0:01:01][%cal Rh3h1] Black is more active.} 51. Rd2 {[%emt 0:00:08]} Rxd2 {[%emt 0:00:46]} 52. Bxd2 {[%emt 0:00:07][%mdl 4096] Endgame [#] KRB-KRB} Kb5 {[%emt 0:00:05]} 53. Re4 {[%emt 0:01:03]} Rxh4 {[%emt 0:00:07] And now ...g5 would win.} 54. Kf1 $2 {[%emt 0:01:21]} (54. Re6) 54... g5 {[%emt 0:01:15]} 55. Kg2 {[%emt 0:00:54]} Bxf4 {[%emt 0:01:37]} 56. Bxf4 {[%emt 0:00:06]} (56. Be1) 56... Rxf4 {[%emt 0:00:02] Black is clearly winning.} ({Worse is} 56... gxf4 57. f3 $11) 57. Rxf4 {[%emt 0:00:07]} gxf4 {[%emt 0:00:01]} 58. Kf3 {[%emt 0:00:07]} c4 {[%emt 0:00:09][%cal Bc5c4,Bc4c3][%mdl 32]} 59. Kxf4 {[%emt 0:00:07]} c3 {[%emt 0:00:29] Weighted Error Value: White=0.33/Black=0.04 (flawless)} 0-1

[Event "58th Akiba Rubinstein GM 2022"]
[Site "Polanica-Zdroj"]
[Date "2022.08.17"]
[Round "5.3"]
[White "Nasuta, Grzegorz"]
[Black "Teclaf, Pawel"]
[Result "1/2-1/2"]
[ECO "C42"]
[WhiteElo "2500"]
[BlackElo "2550"]
[Annotator "TA"]
[PlyCount "60"]
[EventDate "2022.08.13"]
[EventCountry "POL"]
[SourceTitle "playchess.com"]
[Source "ChessBase"]
[SourceQuality "1"]
[TimeControl "40/5400+30:1800+30"]

{[%evp 15,60,38,34,14,17,18,23,20,20,13,15,19,22,22,31,23,9,0,0,-44,-41,-31,-33,-28,-18,-46,-10,-50,0,0,0,0,0,0,0,-11,0,0,0,0,0,0,0,-10,-10,-16,0]} 1. e4 {[%emt 0:00:03]} e5 {[%emt 0:00:03]} 2. Nf3 {[%emt 0:00:06]} Nf6 {[%emt 0:00:04][%cal Bg8f6,Bf6e4,Be4d6,Bd6f5][%mdl 32]} 3. Nxe5 {[%emt 0:00:09]} d6 {[%emt 0:00:05]} 4. Nf3 {[%emt 0:00:06]} Nxe4 {[%emt 0:00:04]} 5. d4 {[%emt 0:00:06]} d5 {[%emt 0:00:04]} 6. Bd3 {[%emt 0:00:08]} Bf5 {[%emt 0:00:04]} 7. O-O {[%emt 0:00:38]} Be7 {[%emt 0:00:03]} 8. Re1 {[%emt 0:02:03]} O-O {[%emt 0:00:11]} 9. Nbd2 {[%emt 0:00:05][%cal Rd2e4] is the new trend. C42: Petroff Defence: 3 Nxe5 and unusual White 3rd moves.} Nd6 $1 {[%emt 0:00:03]} 10. Nf1 {[%emt 0:00:14]} c6 {[%emt 0:00:03]} 11. Bxf5 {[%emt 0:00:51] White has an edge.} Nxf5 {[%emt 0:00:09]} 12. Qd3 {[%emt 0:00:05]} Nd6 {[%emt 0:02:54]} 13. Bf4 {[%emt 0:02:10]} Na6 {[%emt 0:00:06]} 14. h4 {[%emt 0:03:12]} Nc7 {[%emt 0:09:09]} 15. Ng5 {[%emt 0:02:58][%csl Gg5][%cal Rd3h7] [#]} g6 {[%emt 0:01:10]} 16. Nh2 {[%emt 0:02:33]} Qd7 {[%emt 0:32:46] [#] Against Ng4} 17. Qg3 $146 {[%emt 0:05:36][%cal Oe1e7] And now Rxe7! would win.} ({Predecessor:} 17. h5 Bxg5 18. Bxg5 Rfe8 19. hxg6 hxg6 20. Bf6 Rxe1+ 21. Rxe1 Re8 22. Rf1 Na6 23. Be5 Qe6 24. f4 {1-0 (66) Caruana,F (2786)-Mamedyarov,S (2759) Bucharest 2022}) 17... Nf5 {[%emt 0:06:44][%csl LRd4,LRg3]} 18. Qh3 {[%emt 0:01:39]} f6 {[%emt 0:05:43]} 19. Ngf3 {[%emt 0:14:02]} Ne6 {[%emt 0:01:17]} 20. Bd2 {[%emt 0:02:59]} Bd6 {[%emt 0:07:02]} 21. c3 {[%emt 0:13:04]} (21. h5 {keeps more tension.} Bxh2+ 22. Kxh2 Nexd4 23. Nxd4 Qc7+ 24. Kg1) 21... Nf4 {[%emt 0:09:21]} (21... h5 $15) 22. Bxf4 $11 {[%emt 0:00:35] The position is equal.} Bxf4 {[%emt 0:00:05]} 23. h5 {[%emt 0:05:34]} Bxh2+ {[%emt 0:03:00]} 24. Nxh2 {[%emt 0:06:44]} Qf7 {[%emt 0:00:33]} 25. Qg4 {[%emt 0:13:36]} Rfe8 {[%emt 0:02:49]} 26. Qf4 {[%emt 0:03:10]} Kg7 {[%emt 0:01:22]} 27. Nf3 {[%emt 0:01:33]} Qd7 {[%emt 0:01:05]} 28. hxg6 {[%emt 0:07:58]} hxg6 {[%emt 0:00:11]} 29. Rxe8 {[%emt 0:03:06]} Rxe8 {[%emt 0:00:04]} 30. Re1 {[%emt 0:00:08] Inhibits Re2.} Qd6 {[%emt 0:02:09] Weighted Error Value: White=0.08 (flawless) /Black=0.06 (flawless)} 1/2-1/2